fUST/lending_fUST_20260105
["ID","MTS","AMOUNT","RATE_DAILY","PERIOD"]
[400439096,1767553845988,-300.0,0.00010199,2]
[400439097,1767553845997,-300.0,0.00010199,2]
[400439098,1767553846007,-300.0,0.00010199,2]
[400439099,1767553846016,-300.0,0.00010199,2]
[400439100,1767553846025,-300.0,0.00010199,2]
[400439101,1767553846035,-300.0,0.00010199,2]
[400439102,1767553846044,-300.0,0.00010199,2]
[400439103,1767553846053,-300.0,0.00010199,2]
[400439104,1767553846062,-300.0,0.00010199,2]
[400439105,1767553846071,-300.0,0.00010199,2]
[400439106,1767553846081,-300.0,0.00010199,2]
[400439107,1767553846090,-300.0,0.00010199,2]
[400439108,1767553846100,-300.0,0.00010199,2]
[400439109,1767553846110,-300.0,0.00010199,2]
[400439110,1767553846119,-300.0,0.00010199,2]
[400439111,1767553846129,-410.03180361,0.00010209,2]
[400439113,1767553846138,-608.23335215,0.00010209,2]
[400439115,1767553846147,-2224.93348985,0.0001035,2]
[400439117,1767553846157,-600.0,0.00010402,2]
[400439119,1767553846166,-306.93,0.00010436,2]
[400439120,1767553846174,-167.8677076,0.00010442,2]
[400439122,1767553846184,-2773.56790519,0.00010442,2]
[400439125,1767553846194,-574.12855637,0.00010442,2]
[400439128,1767553846215,-200.0,0.00010685,2]
[400439130,1767553846225,-1053.27044415,0.00010794,2]
[400439132,1767553846235,-300.0,0.00010887,2]
[400439134,1767553846245,-999.0,0.00010959,2]
[400439136,1767553846255,-500.0,0.00010959,2]
[400439137,1767553846265,-500.0,0.00010959,2]
[400439139,1767553846275,-300.79543059,0.00010959,2]
[400439142,1767553846286,-500.0,0.00010959,2]
[400439144,1767553846296,-595.37131296,0.0001099,2]
[400439146,1767553846305,-151.0,0.00011,2]
[400439147,1767553846315,-3286.55360853,0.00011353,2]
[400439149,1767553846325,-250.42936338,0.00011359,2]
[400439151,1767553846335,-469.11,0.00011374,2]
[400439153,1767553846344,-720.0,0.00011442,2]
[400439155,1767553846354,-194.50886191,0.00011474,2]
[400439157,1767553846365,-500.0,0.00011474,2]
[400439159,1767553846375,-617.40005154,0.00011538,2]
[400439161,1767553846385,-151.0,0.000116,2]
[400439163,1767553846395,-500.0,0.00011611,2]
[400439165,1767553846405,-500.0,0.00011718,2]
[400439167,1767553846414,-1053.27044415,0.00011729,2]
[400439169,1767553846425,-172.11828201,0.00011748,2]
[400439171,1767553846434,-500.0,0.00011748,2]
[400439173,1767553846444,-500.0,0.00011885,2]
[400439175,1767553846454,-398.41923549,0.00011898,2]
[400439177,1767553846464,-500.0,0.00012022,2]
[400439179,1767553846474,-640.24385345,0.00012086,2]
[400439181,1767553846483,-166.0,0.00012123,2]
[400439183,1767553846494,-172.0,0.00012123,2]
[400439185,1767553846504,-193.6002407,0.00012137,2]
[400439187,1767553846514,-193.6002407,0.00012137,2]
[400439189,1767553846524,-193.6002407,0.00012137,2]
[400439191,1767553846534,-193.6002407,0.00012137,2]
[400439194,1767553846544,-193.6002407,0.00012137,2]
[400439195,1767553846553,-193.6002407,0.00012137,2]
[400439197,1767553846563,-193.6002407,0.00012137,2]
[400439199,1767553846573,-500.0,0.00012159,2]
[400439201,1767553846583,-151.0,0.000122,2]
[400439203,1767553846593,-500.0,0.00012296,2]
[400439205,1767553846603,-617.23,0.00012329,2]
[400439207,1767553846614,-514.36,0.00012329,2]
[400439210,1767553846625,-428.63,0.00012329,2]
[400439212,1767553846634,-357.19,0.00012329,2]
[400439214,1767553846644,-297.66,0.00012329,2]
[400439216,1767553846654,-248.05,0.00012329,2]
[400439218,1767553846664,-206.71,0.00012329,2]
[400439220,1767553846680,-172.26,0.00012329,2]
[400439222,1767553846690,-861.32,0.00012329,2]
[400439224,1767553846700,-193.6002407,0.00012329,2]
[400439226,1767553846709,-193.6002407,0.00012329,2]
[400439227,1767553846718,-500.0,0.00012329,2]
[400439230,1767553846728,-500.0,0.00012329,2]
[400439232,1767553846738,-500.0,0.00012329,2]
[400439234,1767553846749,-500.0,0.00012329,2]
[400439235,1767553846758,-500.0,0.00012329,2]
[400439237,1767553846768,-500.0,0.00012329,2]
[400439239,1767553846778,-352.44686195,0.00012329,2]
[400439241,1767553846788,-500.0,0.00012329,2]
[400439243,1767553846798,-500.0,0.00012329,2]
[400439245,1767553846808,-500.0,0.00012329,2]
[400439247,1767553846817,-500.0,0.00012329,2]
[400439249,1767553846827,-500.0,0.00012329,2]
[400439251,1767553846836,-500.0,0.00012329,2]
[400439253,1767553846846,-500.0,0.00012329,2]
[400439255,1767553846855,-500.0,0.00012329,2]
[400439257,1767553846864,-500.0,0.00012329,2]
[400439259,1767553846875,-500.0,0.00012329,2]
[400439261,1767553846884,-500.0,0.00012329,2]
[400439263,1767553846893,-500.0,0.00012329,2]
[400439265,1767553846903,-500.0,0.00012329,2]
[400439267,1767553846912,-500.0,0.00012433,2]
[400439269,1767553846922,-500.0,0.0001257,2]
[400439271,1767553846932,-864.0,0.00012586,2]
[400439273,1767553846942,-663.93287602,0.00012634,2]
[400439275,1767553846951,-1053.27044415,0.00012664,2]
[400439277,1767553846961,-500.0,0.00012707,2]
[400439279,1767553846971,-151.0,0.000128,2]
[400439281,1767553846983,-4854.83041279,0.00012808,2]
[400439283,1767553846993,-131133.76583913,0.0001287,2]
[400439285,1767553847003,-193.93872878,0.00013139,2]
[400439287,1767553847012,-688.49839244,0.00013182,2]
[400439289,1767553847025,-1041.66666667,0.00013193,2]
[400439291,1767553847034,-500.0,0.00013273,2]
[400439293,1767553847044,-500.0,0.00013273,2]
[400439295,1767553847054,-271.74625638,0.00013273,2]
[400439297,1767553847063,-500.0,0.00013273,2]
[400439299,1767553847073,-500.0,0.00013273,2]
[400439301,1767553847083,-500.0,0.00013273,2]
[400439303,1767553847092,-500.0,0.00013273,2]
[400439305,1767553847103,-293.68674239,0.00013273,2]
[400439307,1767553847112,-500.0,0.00013273,2]
[400439309,1767553847122,-460.22217308,0.00013273,2]
[400439311,1767553847132,-500.52724424,0.00013273,2]
[400439313,1767553847141,-500.0,0.00013273,2]
[400439315,1767553847151,-500.0,0.00013273,2]
[400439318,1767553847161,-500.0,0.00013273,2]
[400439320,1767553847171,-500.0,0.00013273,2]
[400439321,1767553847180,-423.32811707,0.00013273,2]
[400439324,1767553847190,-498.85233805,0.00013273,2]
[400439326,1767553847200,-500.0,0.00013273,2]
[400439328,1767553847209,-500.0,0.00013273,2]
[400439330,1767553847218,-500.0,0.00013273,2]
[400439332,1767553847227,-500.41510644,0.00013273,2]
[400439333,1767553847237,-500.26789632,0.00013273,2]
[400439336,1767553847248,-500.0,0.00013273,2]
[400439337,1767553847257,-500.0,0.00013273,2]
[400439339,1767553847267,-501.87840663,0.00013273,2]
[400439341,1767553847276,-500.0,0.00013273,2]
[400439344,1767553847286,-500.0,0.00013273,2]
[400439345,1767553847295,-500.0,0.00013273,2]
[400439348,1767553847305,-500.0,0.00013273,2]
[400439350,1767553847314,-151.0,0.000134,2]
[400439352,1767553847323,-151.0,0.000135,2]
[400439354,1767553847333,-193.93872878,0.00013545,2]
[400439356,1767553847342,-1053.27044415,0.00013599,2]
[400439358,1767553847351,-300.0,0.00013673,2]
[400439360,1767553847361,-12321.97553,0.00013699,2]
[400439362,1767553847371,-999.388219,0.00013699,2]
[400439364,1767553847380,-452.976506,0.00013699,2]
[400439366,1767553847389,-1000.0,0.00013699,2]
[400439368,1767553847398,-500.0,0.00013699,2]
[400439370,1767553847408,-167.99783089,0.00013699,2]
[400439371,1767553847417,-600.51895568,0.00013699,2]
[400439373,1767553847427,-500.0,0.00013699,2]
[400439375,1767553847436,-500.0,0.00013699,2]
[400439377,1767553847445,-500.86924755,0.00013699,2]
[400439379,1767553847455,-500.65045485,0.00013699,2]
[400439382,1767553847465,-500.0,0.00013699,2]
[400439384,1767553847475,-500.0,0.00013699,2]
[400439386,1767553847485,-2000.0,0.00013699,7]
[400439388,1767553847494,-500.0,0.00013699,2]
[400439390,1767553847503,-500.0,0.00013699,2]
[400439391,1767553847512,-500.0,0.00013699,2]
[400439394,1767553847523,-500.0,0.00013699,2]
[400439395,1767553847534,-151.0,0.000137,2]
[400439398,1767553847543,-628.0,0.00013709,2]
[400439400,1767553847553,-2145.0,0.0001371,2]
[400439401,1767553847563,-1365.0,0.0001371,2]
[400439404,1767553847574,-444.17370633,0.0001373,2]
[400439405,1767553847584,-5451.0,0.00013763,2]
[400439407,1767553847594,-714.0,0.00013763,2]
[400439409,1767553847604,-194.729,0.00013763,2]
[400439412,1767553847614,-416.0,0.00013763,2]
[400439414,1767553847624,-1000.0,0.00013821,2]
[400439415,1767553847633,-354.76768455,0.00013821,2]
[400439417,1767553847643,-1000.0,0.00013821,2]
[400439419,1767553847653,-1000.0,0.00013821,2]
[400439421,1767553847663,-1000.0,0.00013821,2]
[400439423,1767553847673,-1000.0,0.00013821,2]
[400439424,1767553847686,-1000.0,0.00013821,2]
[400439425,1767553847696,-281.48137907,0.00013821,2]
[400439426,1767553847706,-1000.0,0.00013821,2]
[400439427,1767553847715,-1000.0,0.00013821,2]
[400439428,1767553847725,-402.33846508,0.00013821,2]
[400439429,1767553847734,-1000.0,0.00013821,2]
[400439430,1767553847744,-1000.0,0.00013821,2]
[400439431,1767553847754,-933.01019276,0.00013821,2]
[400439432,1767553847764,-1000.0,0.00013821,2]
[400439433,1767553847774,-1000.0,0.00013845,2]
[400439434,1767553847783,-459.19505108,0.00013898,2]
[400439435,1767553847792,-151.0,0.000139,2]
[400439436,1767553847801,-151.0,0.00014,2]
[400439437,1767553847811,-1417.5593005,0.00014081,2]
[400439438,1767553847820,-151.0,0.000141,2]
[400439439,1767553847831,-600.0,0.00014221,2]
[400439441,1767553847840,-1000.0,0.00014247,2]
[400439443,1767553847849,-1001.5287654,0.00014247,2]
[400439444,1767553847859,-1000.0,0.00014247,2]
[400439446,1767553847870,-1000.0,0.00014247,2]
[400439448,1767553847879,-1000.0,0.00014247,2]
[400439450,1767553847890,-500.79952373,0.00014247,2]
[400439451,1767553847899,-1000.0,0.00014247,2]
[400439452,1767553847909,-1000.0,0.00014247,2]
[400439453,1767553847919,-748.59476834,0.00014247,2]
[400439454,1767553847929,-191.657624,0.00014247,2]
[400439455,1767553847938,-191.657624,0.00014247,2]
[400439456,1767553847948,-191.657624,0.00014247,2]
[400439457,1767553847958,-191.657624,0.00014247,2]
[400439458,1767553847968,-6423.10721706,0.00014263,2]
[400439459,1767553847977,-180.103467,0.00014368,2]
[400439460,1767553847987,-180.103467,0.00014368,2]
[400439461,1767553847996,-180.103467,0.00014368,2]
[400439462,1767553848007,-180.103467,0.00014368,2]
[400439463,1767553848017,-500.0,0.00014368,2]
[400439464,1767553848026,-1500.0,0.00014368,2]
[400439465,1767553848036,-1500.0,0.00014368,2]
[400439466,1767553848045,-1000.0,0.00014368,2]
[400439467,1767553848055,-1500.0,0.00014368,2]
[400439468,1767553848065,-1500.0,0.00014368,2]
[400439469,1767553848074,-151.0,0.000145,2]
[400439470,1767553848084,-10000.0,0.0001451,2]
[400439471,1767553848094,-2000.0,0.00014514,7]
[400439472,1767553848104,-151.0,0.000146,2]
[400439473,1767553848113,-900.0,0.00014768,2]
[400439474,1767553848123,-687.88444633,0.00014795,2]
[400439475,1767553848132,-1558.12211568,0.00014795,2]
[400439476,1767553848142,-1500.0,0.00014795,2]
[400439477,1767553848151,-1500.0,0.00014795,2]
[400439478,1767553848161,-1500.0,0.00014795,2]
[400439479,1767553848172,-1500.0,0.00014795,2]
[400439481,1767553848181,-419875.2193504,0.00014914,2]
[400439482,1767553848195,-1532.5015699,0.00014914,2]
[400439483,1767553848207,-10728.28511117,0.00014914,2]
[400439484,1767553848217,-191.657624,0.00014914,2]
[400439485,1767553848226,-191.657624,0.00014914,2]
[400439486,1767553848236,-191.657624,0.00014914,2]
[400439487,1767553848246,-191.657624,0.00014914,2]
[400439488,1767553848255,-180.103467,0.00014914,2]
[400439489,1767553848265,-180.103467,0.00014914,2]
[400439490,1767553848275,-180.103467,0.00014914,2]
[400439491,1767553848284,-180.103467,0.00014914,2]
[400439492,1767553848293,-391.0513895,0.00014916,2]
[400439493,1767553848303,-1412.605978,0.00014916,2]
[400439494,1767553848332,-587.394022,0.00014916,2]
[400439495,1767553848342,-2098.44792801,0.00014916,2]
[400439496,1767553848351,-2000.0,0.00014916,2]
[400439497,1767553848361,-270.216,0.00014959,2]
[400439498,1767553848370,-150.173,0.00014959,2]
[400439499,1767553848379,-150.395,0.00014959,2]
[400439500,1767553848389,-250.0,0.00014959,2]
[400439501,1767553848399,-267.101,0.00014959,2]
[400439502,1767553848408,-175.717707,0.00015068,2]
[400439503,1767553848418,-500.0,0.000151,2]
[400439504,1767553848428,-151.0,0.000152,2]
[400439505,1767553848438,-1000.0,0.0001523,2]
[400439506,1767553848450,-244.0,0.0001523,2]
[400439507,1767553848459,-151.0,0.000153,2]
[400439508,1767553848469,-1200.0,0.00015316,2]
[400439509,1767553848479,-2000.0,0.00015329,7]
[400439510,1767553848489,-2000.0,0.00015342,2]
[400439511,1767553848499,-2000.0,0.00015342,2]
[400439512,1767553848509,-2000.0,0.00015342,2]
[400439513,1767553848518,-2000.0,0.00015342,2]
[400439514,1767553848528,-2500.0,0.00015464,2]
[400439515,1767553848538,-2500.0,0.00015464,2]
[400439516,1767553848548,-151.0,0.000156,2]
[400439517,1767553848558,-7991.38402132,0.00015718,4]
[400439518,1767553848568,-587.56786554,0.000158,14]
[400439519,1767553848578,-151.0,0.000158,2]
[400439520,1767553848587,-1500.0,0.00015864,2]
[400439521,1767553848597,-2500.0,0.0001589,2]
[400439522,1767553848608,-2500.0,0.0001589,2]
[400439523,1767553848618,-2500.0,0.0001589,2]
[400439524,1767553848629,-2500.0,0.0001589,2]
[400439525,1767553848639,-519.97086666,0.00015898,2]
[400439526,1767553848649,-151.0,0.00016,2]
[400439527,1767553848660,-151.0,0.00016,2]
[400439528,1767553848675,-3000.0,0.00016012,2]
[400439529,1767553848686,-3000.0,0.00016012,2]
[400439530,1767553848696,-1000.0,0.000161,2]
[400439531,1767553848705,-1000.0,0.000161,2]
[400439532,1767553848715,-1000.0,0.000161,2]
[400439533,1767553848724,-1000.0,0.000161,2]
[400439534,1767553848734,-1000.0,0.000161,2]
[400439535,1767553848743,-1000.0,0.000161,2]
[400439536,1767553848754,-1000.0,0.000161,2]
[400439537,1767553848763,-1000.0,0.000161,2]
[400439538,1767553848772,-1000.0,0.000161,2]
[400439539,1767553848781,-1000.0,0.000161,2]
[400439540,1767553848791,-528.544402,0.000161,2]
[400439541,1767553848801,-333.0,0.00016137,3]
[400439542,1767553848974,-2000.0,0.00016144,7]
[400439543,1767553848984,-151.0,0.000164,2]
[400439544,1767553848993,-151.0,0.000164,2]
[400439545,1767553849002,-1800.0,0.00016412,2]
[400439546,1767553849011,-191.657624,0.00016438,2]
[400439547,1767553849027,-191.657624,0.00016438,2]
[400439548,1767553849036,-191.657624,0.00016438,2]
[400439549,1767553849046,-191.657624,0.00016438,2]
[400439550,1767553849055,-242.1,0.00016438,2]
[400439551,1767553849064,-180.103467,0.00016438,2]
[400439552,1767553849073,-180.103467,0.00016438,2]
[400439553,1767553849082,-180.103467,0.00016438,2]
[400439554,1767553849093,-180.103467,0.00016438,2]
[400439555,1767553849106,-500.0,0.00016438,2]
[400439556,1767553849122,-500.0,0.00016438,2]
[400439557,1767553849131,-500.0,0.00016438,2]
[400439558,1767553849140,-500.0,0.00016438,2]
[400439559,1767553849150,-500.0,0.00016438,2]
[400439560,1767553849159,-417.22944583,0.00016438,2]
[400439561,1767553849241,-82.77055417,0.00016438,2]
[400439562,1767553849250,-500.0,0.00016438,2]
[400439563,1767553849260,-500.0,0.00016438,2]
[400439564,1767553849270,-226.92086672,0.00016438,2]
[400439565,1767553849279,-500.0,0.00016438,2]
[400439566,1767553849289,-500.0,0.00016438,2]
[400439567,1767553849299,-500.0,0.00016438,2]
[400439568,1767553849310,-24.0296719,0.00016438,2]
[400439571,1767553858191,150.7,9.5e-05,2]
[400439572,1767553858593,180.84,9.88e-05,2]
[400439573,1767553906418,10000.01,9.8e-05,2]
[400439574,1767553906444,10000.01,9.8e-05,2]
[400439575,1767553906469,10000.01,9.8e-05,2]
[400439576,1767553906496,10000.01,9.8e-05,2]
[400439577,1767553906522,10000.01,9.8e-05,2]
[400439578,1767553906548,10000.01,9.8e-05,2]
[400439579,1767553927708,366.43,7.973e-05,2]
[400439594,1767553941316,-616.9653586,8.353e-05,2]
[400439595,1767553941618,-115.8946414,8.353e-05,2]
[400439596,1767553941648,-1099.29,8.733e-05,2]
[400439597,1767553941837,-0.01,8.741e-05,2]
[400439598,1767553941985,-0.02,8.741e-05,2]
[400439599,1767553942096,-0.04,8.741e-05,2]
[400439600,1767553942248,-0.08,8.741e-05,2]
[400439601,1767553942391,-0.16,8.741e-05,2]
[400439602,1767553942503,-0.32,8.741e-05,2]
[400439603,1767553942534,-4985.26758217,8.741e-05,2]
[400439604,1767553942644,-4985.90758217,8.741e-05,2]
[400439605,1767553942668,-28.19483566,8.741e-05,2]
[400439606,1767553970754,-1465.72,9.113e-05,2]
[400439607,1767553987510,-245.58277529,9.213e-05,2]
[400439608,1767554006860,388.34,7.907e-05,2]
[400439609,1767554007256,776.67,8.283e-05,2]
[400439610,1767554007880,1165.01,8.66e-05,2]
[400439611,1767554008230,1553.34,9.037e-05,2]
[400439612,1767554016065,-1941.68,9.413e-05,2]
[400439613,1767554016092,-2330.02,9.79e-05,2]
[400439614,1767554016121,-300.0,9.799e-05,2]
[400439615,1767554016151,-356.61,9.799e-05,2]
[400439616,1767554016318,-143.39,9.799e-05,2]
[400439617,1767554016352,-270.48640149,9.799e-05,2]
[400439618,1767554016384,-500.0,9.799e-05,2]
[400439619,1767554016413,-166.53376238,9.799e-05,2]
[400439620,1767554016445,-500.0,9.799e-05,2]
[400439621,1767554016475,-500.0,9.799e-05,2]
[400439622,1767554016506,-500.0,9.799e-05,2]
[400439623,1767554016537,-500.0,9.799e-05,2]
[400439624,1767554016569,-500.0,9.799e-05,2]
[400439625,1767554016599,-500.0,9.799e-05,2]
[400439626,1767554016628,-500.0,9.799e-05,2]
[400439627,1767554016658,-339.18967226,9.799e-05,2]
[400439628,1767554016865,-160.81032774,9.799e-05,2]
[400439629,1767554016894,-579.73091719,9.799e-05,2]
[400439630,1767554016923,-500.0,9.799e-05,2]
[400439631,1767554016952,-586.24686005,9.799e-05,2]
[400439632,1767554016980,-500.0,9.799e-05,2]
[400439633,1767554017009,-500.0,9.799e-05,2]
[400439634,1767554017036,-500.0,9.799e-05,2]
[400439635,1767554017064,-500.0,9.799e-05,2]
[400439636,1767554017092,-500.0,9.799e-05,2]
[400439637,1767554017120,-501.18643997,9.799e-05,2]
[400439638,1767554017148,-121.88345741,9.799e-05,2]
[400439639,1767554017289,-100.29399528,9.799e-05,2]
[400439640,1767554017320,-500.0,9.799e-05,2]
[400439641,1767554017349,-500.0,9.799e-05,2]
[400439642,1767554017378,-500.0,9.799e-05,2]
[400439643,1767554042184,-322.73838718,9.8e-05,2]
[400439644,1767554042608,300.0,9.799e-05,2]
[400439645,1767554061371,5000.0,9.8e-05,2]
[400439646,1767554062891,454.44527212,9.219e-05,2]
[400439648,1767554071663,-769.64888703,9.8e-05,2]
[400439649,1767554071691,-10000.01,9.8e-05,2]
[400439650,1767554071761,-10000.01,9.8e-05,2]
[400439651,1767554071943,-10000.01,9.8e-05,2]
[400439652,1767554072154,-10000.01,9.8e-05,2]
[400439653,1767554072396,-10000.01,9.8e-05,2]
[400439654,1767554072817,-10000.01,9.8e-05,2]
[400439655,1767554073005,-10000.01,9.8e-05,2]
[400439656,1767554076012,153.0,8.3e-07,2]
[400439657,1767554077106,153.0,8.3e-07,2]
[400439658,1767554086354,403.76,7.884e-05,2]
[400439659,1767554091245,-225.44446793,8.26e-05,2]
[400439660,1767554093376,-155.7208026,8.26e-05,2]
[400439661,1767554094872,-263.30570975,8.26e-05,2]
[400439662,1767554097964,-163.04901972,8.26e-05,2]
[400439663,1767554097988,-23.48915279,8.635e-05,2]
[400439664,1767554100606,-241.272812,8.635e-05,2]
[400439665,1767554102630,-946.51803521,8.635e-05,2]
[400439666,1767554102660,-1615.04,9.011e-05,2]
[400439667,1767554102691,-2018.8,9.386e-05,2]
[400439668,1767554102762,-839.29392958,9.702e-05,2]
[400439669,1767554102979,-4160.70607042,9.702e-05,2]
[400439670,1767554103008,-300.0,9.761e-05,2]
[400439671,1767554103037,-300.0,9.761e-05,2]
[400439672,1767554103066,-178.59785916,9.761e-05,2]
[400439673,1767554103136,-121.40214084,9.761e-05,2]
[400439674,1767554145591,259.34177295,9.654e-05,2]
[400439675,1767554154775,811.84,0.00030136,120]
[400439676,1767554155012,811.84,0.00030136,120]
[400439677,1767554155256,811.84,0.00030136,120]
[400439678,1767554155499,811.84,0.00030136,120]
[400439679,1767554155788,811.84,0.00030136,120]
[400439680,1767554156027,811.84,0.00030136,120]
[400439681,1767554156272,811.84,0.00030136,120]
[400439682,1767554156513,811.84,0.00030136,120]
[400439683,1767554156779,811.84,0.00030136,120]
[400439684,1767554157028,811.84,0.00030136,120]
[400439685,1767554157266,811.84,0.00030136,120]
[400439686,1767554157502,811.84,0.00030136,120]
[400439687,1767554157742,811.84,0.00030136,120]
[400439689,1767554157987,811.84,0.00030136,120]
[400439690,1767554158225,811.84,0.00030136,120]
[400439691,1767554158473,811.84,0.00030136,120]
[400439692,1767554158741,811.84,0.00030136,120]
[400439693,1767554158985,811.84,0.00030136,120]
[400439694,1767554159228,811.84,0.00030136,120]
[400439695,1767554159525,811.84,0.00030136,120]
[400439696,1767554159788,811.84,0.00030136,120]
[400439697,1767554160018,811.84,0.00030136,120]
[400439698,1767554160251,811.84,0.00030136,120]
[400439699,1767554160492,811.92442673,0.00030136,120]
[400439700,1767554165899,374.9,6.346e-05,2]
[400439701,1767554166325,749.81,6.648e-05,2]
[400439702,1767554166712,1124.71,6.95e-05,2]
[400439703,1767554167116,1499.61,7.253e-05,2]
[400439704,1767554167514,1874.51,7.555e-05,2]
[400439705,1767554167899,2249.42,7.857e-05,2]
[400439706,1767554168296,1867.70822705,8.159e-05,2]
[400439707,1767554168320,756.61177295,8.159e-05,2]
[400439708,1767554168702,2999.22,8.461e-05,2]
[400439709,1767554169093,3374.13,8.764e-05,2]
[400439710,1767554169558,2870.04822705,9.066e-05,2]
[400439713,1767554242410,159.87,6.369e-05,2]
[400439714,1767554242822,319.73,6.672e-05,2]
[400439715,1767554243296,479.6,6.975e-05,2]
[400439716,1767554243666,639.46,7.279e-05,2]
[400439717,1767554244086,799.33,7.582e-05,2]
[400439718,1767554244481,959.2,7.885e-05,2]
[400439719,1767554244886,1119.06,8.189e-05,2]
[400439720,1767554245274,1278.93,8.492e-05,2]
[400439721,1767554245679,1438.79,8.795e-05,2]
[400439722,1767554251886,-1598.66,9.098e-05,2]
[400439724,1767554309097,5000.0,9.654e-05,2]
[400439725,1767554317982,206.19,6.929e-05,2]
[400439726,1767554318374,274.92,7.23e-05,2]
[400439727,1767554318793,343.65,7.532e-05,2]
[400439728,1767554319376,412.39,7.833e-05,2]
[400439729,1767554319777,481.12,8.134e-05,2]
[400439730,1767554320170,549.85,8.436e-05,2]
[400439731,1767554320546,618.58,8.737e-05,2]
[400439732,1767554321178,687.31,9.038e-05,2]
[400439733,1767554382194,153.0,8.3e-07,2]
[400439734,1767554391247,153.67,7.509e-05,2]
[400439735,1767554392138,184.41,7.809e-05,2]
[400439736,1767554392536,215.14,8.109e-05,2]
[400439737,1767554392936,245.87,8.41e-05,2]
[400439738,1767554393331,276.61,8.71e-05,2]
[400439739,1767554393757,307.34,9.011e-05,2]
[400439741,1767554425449,3193.2136069,8.798e-05,2]
[400439743,1767554461127,165.51,8.419e-05,2]
[400439744,1767554461554,186.2,8.72e-05,2]
[400439745,1767554461975,206.89,9.02e-05,2]
[400439748,1767554534299,5000.0,9.689e-05,2]
[400439749,1767554557745,1248.1963931,9.689e-05,2]
[400439750,1767554594487,153.0,8.181e-05,2]
[400439751,1767554594926,174.85,8.484e-05,2]
[400439752,1767554595312,196.71,8.787e-05,2]
[400439753,1767554595707,218.57,9.09e-05,2]
[400439771,1767554662046,173.7,8.532e-05,2]
[400439772,1767554662449,198.51,8.848e-05,2]
[400439773,1767554662856,223.33,9.164e-05,2]
[400439774,1767554663401,248.14,9.48e-05,2]
[400439889,1767554750717,-3751.8036069,9.689e-05,2]
[400439897,1767554760079,2496.4027862,9.689e-05,2]
[400439898,1767554760102,2503.5972138,9.689e-05,2]
[400439927,1767554771668,4720.0915282,8.776e-05,2]
[400439945,1767554784180,5000.0,9.693e-05,2]
[400440016,1767554807060,279.9184718,9.693e-05,2]
[400440017,1767554807087,4720.0815282,9.693e-05,2]
[400440026,1767554830511,5000.0,9.693e-05,2]
[400440034,1767554834005,-316.28361944,9.693e-05,2]
[400440058,1767554853921,5000.0,9.693e-05,2]
[400440068,1767554876870,4367.44276112,9.693e-05,2]
[400440069,1767554876897,632.55723888,9.693e-05,2]
[400440095,1767554899925,5000.0,9.693e-05,2]
[400440118,1767554923238,4367.45276112,9.693e-05,2]
[400440119,1767554923260,632.54723888,9.693e-05,2]
[400440120,1767554927534,163.05,8.832e-05,2]
[400440121,1767554927934,183.43,9.147e-05,2]
[400440122,1767554928324,203.82,9.463e-05,2]
[400440128,1767554961911,499.77739692,9.52e-05,2]
[400440158,1767555032513,-300.0,9.599e-05,2]
[400440160,1767555032523,-538.73973918,9.599e-05,2]
[400440162,1767555032535,-661.26026082,9.599e-05,2]
[400440164,1767555032544,-5000.0,9.6e-05,2]
[400440166,1767555032554,-554.0,9.6e-05,2]
[400440167,1767555032563,-309.95794705,9.647e-05,2]